[Event "Titled Tuesday Blitz November 22 Early 2022"]
[White "Hambleton, Aman"]
[Black "Pranav, V"]
[WhiteFideId "2606577"]
[BlackFideId "25060783"]
[WhiteElo "2538"]
[BlackElo "2430"]
[Result "0-1"]
[Round "03"]
[TimeControl "180+1"]
[Date "2022.11.22"]
[WhiteClock "0:00:02"]
[BlackClock "0:00:36"]

1. d4 {[%clk 0:02:59]}  Nf6 {[%clk 0:02:58]} 2. Bf4 {[%clk 0:02:56]}  c5 {[%clk 0:02:57]} 3. e3 {[%clk 0:02:56]}  cxd4 {[%clk 0:02:57]} 4. exd4 {[%clk 0:02:56]}  b6 {[%clk 0:02:55]} 5. Nf3 {[%clk 0:02:53]}  g6 {[%clk 0:02:54]} 6. h3 {[%clk 0:02:52]}  Bg7 {[%clk 0:02:54]} 7. c3 {[%clk 0:02:50]}  O-O {[%clk 0:02:54]} 8. Bd3 {[%clk 0:02:46]}  Ba6 {[%clk 0:02:54]} 9. O-O {[%clk 0:02:41]}  d6 {[%clk 0:02:50]} 10. Re1 {[%clk 0:02:39]}  Qd7 {[%clk 0:02:44]} 11. Bc2 {[%clk 0:02:30]}  Nc6 {[%clk 0:02:39]} 12. a4 {[%clk 0:02:10]}  Rac8 {[%clk 0:02:35]} 13. Nbd2 {[%clk 0:02:09]}  Rfe8 {[%clk 0:02:32]} 14. Bh2 {[%clk 0:01:38]}  Na5 {[%clk 0:02:24]} 15. Ne4 {[%clk 0:01:20]}  Bb7 {[%clk 0:02:08]} 16. Nxf6+ {[%clk 0:01:00]}  Bxf6 {[%clk 0:02:09]} 17. Bd3 {[%clk 0:01:01]}  Bd5 {[%clk 0:02:08]} 18. Nd2 {[%clk 0:00:35]}  Qb7 {[%clk 0:02:06]} 19. Be4 {[%clk 0:00:18]}  Bg7 {[%clk 0:01:59]} 20. Qf3 {[%clk 0:00:16]}  Bxe4 {[%clk 0:02:00]} 21. Nxe4 {[%clk 0:00:14]}  Qd7 {[%clk 0:01:57]} 22. Nd2 {[%clk 0:00:11]}  a6 {[%clk 0:01:47]} 23. Qd3 {[%clk 0:00:10]}  Qb7 {[%clk 0:01:44]} 24. Bf4 {[%clk 0:00:05]}  e5 {[%clk 0:01:38]} 25. dxe5 {[%clk 0:00:02]}  dxe5 {[%clk 0:01:39]} 26. Bg3 {[%clk 0:00:02]}  Rcd8 {[%clk 0:01:35]} 27. Qe2 {[%clk 0:00:03]}  h5 {[%clk 0:01:17]} 28. Nc4 {[%clk 0:00:03]}  Nxc4 {[%clk 0:01:11]} 29. Qxc4 {[%clk 0:00:04]}  Rd2 {[%clk 0:01:12]} 30. Re2 {[%clk 0:00:04]}  b5 {[%clk 0:01:06]} 31. axb5 {[%clk 0:00:05]}  axb5 {[%clk 0:01:07]} 32. Qe4 {[%clk 0:00:04]}  Qxe4 {[%clk 0:01:05]} 33. Rxe4 {[%clk 0:00:05]}  Rxb2 {[%clk 0:01:05]} 34. Ra7 {[%clk 0:00:03]}  f5 {[%clk 0:01:02]} 35. Re1 {[%clk 0:00:03]}  f4 {[%clk 0:00:54]} 36. Bh4 {[%clk 0:00:03]}  e4 {[%clk 0:00:53]} 37. Bg5 {[%clk 0:00:03]}  Bxc3 {[%clk 0:00:48]} 38. Rc1 {[%clk 0:00:03]}  Bd4 {[%clk 0:00:47]} 39. Rb7 {[%clk 0:00:02]}  Rxf2 {[%clk 0:00:44]} 40. Kh1 {[%clk 0:00:01]}  f3 {[%clk 0:00:45]} 41. Rcc7 {[%clk 0:00:01]}  fxg2+ {[%clk 0:00:43]} 42. Kh2 {[%clk 0:00:02]}  g1=Q+ {[%clk 0:00:36]} 43. Kxg1 {[%clk 0:00:02]}  Rf5+ {[%clk 0:00:36]} 44. Kh1 {[%clk 0:00:02]}  Rxg5 {[%clk 0:00:36]} 0-1


[Site "https://www.chess.com"]

[Event "Titled Tuesday Blitz November 22 Early 2022"]
[White "Han, Yichen"]
[Black "Donskov, Anatoly"]
[WhiteFideId "1054430"]
[BlackFideId "24143413"]
[WhiteElo "2323"]
[BlackElo "2219"]
[Result "1-0"]
[Round "03"]
[TimeControl "180+1"]
[Date "2022.11.23"]
[WhiteClock "0:00:20"]
[BlackClock "0:00:01"]

1. e4 {[%clk 0:03:00]}  c5 {[%clk 0:02:59]} 2. Nf3 {[%clk 0:03:00]}  e6 {[%clk 0:03:00]} 3. d4 {[%clk 0:03:00]}  cxd4 {[%clk 0:03:00]} 4. Nxd4 {[%clk 0:02:59]}  Nf6 {[%clk 0:03:01]} 5. Nc3 {[%clk 0:02:56]}  Nc6 {[%clk 0:03:01]} 6. Ndb5 {[%clk 0:02:41]}  Bc5 {[%clk 0:03:00]} 7. Bf4 {[%clk 0:02:32]}  O-O {[%clk 0:02:56]} 8. Bc7 {[%clk 0:02:32]}  Qe7 {[%clk 0:02:55]} 9. Bd6 {[%clk 0:02:32]}  Bxd6 {[%clk 0:02:52]} 10. Qxd6 {[%clk 0:02:33]}  Qd8 {[%clk 0:02:48]} 11. Be2 {[%clk 0:02:27]}  a6 {[%clk 0:02:28]} 12. Nd4 {[%clk 0:02:18]}  Ne8 {[%clk 0:01:22]} 13. Nxc6 {[%clk 0:02:10]}  bxc6 {[%clk 0:01:21]} 14. Qg3 {[%clk 0:02:08]}  d5 {[%clk 0:01:20]} 15. O-O-O {[%clk 0:02:07]}  Qb6 {[%clk 0:01:09]} 16. Rhe1 {[%clk 0:01:55]}  Rb8 {[%clk 0:00:54]} 17. Na4 {[%clk 0:01:53]}  Qb4 {[%clk 0:00:52]} 18. a3 {[%clk 0:01:44]}  Qb7 {[%clk 0:00:51]} 19. Bxa6 {[%clk 0:01:29]}  Qa7 {[%clk 0:00:15]} 20. Bxc8 {[%clk 0:01:20]}  Rxc8 {[%clk 0:00:16]} 21. Nc3 {[%clk 0:01:17]}  Nf6 {[%clk 0:00:15]} 22. e5 {[%clk 0:01:13]}  Nd7 {[%clk 0:00:16]} 23. Qe3 {[%clk 0:01:09]}  Qb7 {[%clk 0:00:15]} 24. Na4 {[%clk 0:01:06]}  c5 {[%clk 0:00:15]} 25. Qb3 {[%clk 0:01:03]}  Qc6 {[%clk 0:00:14]} 26. Nc3 {[%clk 0:01:01]}  Rb8 {[%clk 0:00:13]} 27. Qa4 {[%clk 0:01:01]}  Qc7 {[%clk 0:00:14]} 28. b3 {[%clk 0:00:40]}  Ra8 {[%clk 0:00:13]} 29. Qh4 {[%clk 0:00:34]}  Rxa3 {[%clk 0:00:13]} 30. Kb2 {[%clk 0:00:34]}  Rfa8 {[%clk 0:00:14]} 31. Ra1 {[%clk 0:00:33]}  Qa5 {[%clk 0:00:12]} 32. Na4 {[%clk 0:00:33]}  Rxa1 {[%clk 0:00:09]} 33. Rxa1 {[%clk 0:00:34]}  Nxe5 {[%clk 0:00:06]} 34. Ra2 {[%clk 0:00:30]}  h6 {[%clk 0:00:05]} 35. Nc3 {[%clk 0:00:31]}  Qd8 {[%clk 0:00:05]} 36. Rxa8 {[%clk 0:00:28]}  Qxa8 {[%clk 0:00:05]} 37. Na4 {[%clk 0:00:29]}  c4 {[%clk 0:00:04]} 38. Qd4 {[%clk 0:00:27]}  Qb8 {[%clk 0:00:04]} 39. Nb6 {[%clk 0:00:24]}  Nc6 {[%clk 0:00:03]} 40. Qc5 {[%clk 0:00:24]}  Nd8 {[%clk 0:00:02]} 41. Nd7 {[%clk 0:00:23]}  Qa8 {[%clk 0:00:02]} 42. Qf8+ {[%clk 0:00:24]}  Kh7 {[%clk 0:00:02]} 43. Qe8 {[%clk 0:00:22]}  cxb3 {[%clk 0:00:02]} 44. Nf8+ {[%clk 0:00:23]}  Kg8 {[%clk 0:00:02]} 45. Nxe6+ {[%clk 0:00:22]}  Kh7 {[%clk 0:00:02]} 46. Nf8+ {[%clk 0:00:22]}  Kg8 {[%clk 0:00:01]} 47. cxb3 {[%clk 0:00:20]} 1-0


[Site "https://www.chess.com"]

[Event "Titled Tuesday Blitz November 22 Early 2022"]
[White "Hartikainen, Jarmo"]
[Black "Grunberg, Mihai-Lucian"]
[WhiteFideId "503134"]
[BlackFideId "1204149"]
[WhiteElo "2193"]
[BlackElo "2363"]
[Result "1/2-1/2"]
[Round "03"]
[TimeControl "180+1"]
[Date "2022.11.23"]
[WhiteClock "0:00:19"]
[BlackClock "0:01:17"]

1. e4 {[%clk 0:03:00]}  c5 {[%clk 0:03:00]} 2. c3 {[%clk 0:03:00]}  d5 {[%clk 0:02:59]} 3. exd5 {[%clk 0:03:00]}  Qxd5 {[%clk 0:03:00]} 4. d4 {[%clk 0:03:00]}  Nc6 {[%clk 0:03:00]} 5. Nf3 {[%clk 0:02:59]}  Bg4 {[%clk 0:03:00]} 6. Be2 {[%clk 0:02:59]}  Nf6 {[%clk 0:02:59]} 7. c4 {[%clk 0:02:46]}  Qh5 {[%clk 0:02:51]} 8. d5 {[%clk 0:02:44]}  Nd4 {[%clk 0:02:51]} 9. Nxd4 {[%clk 0:02:39]}  cxd4 {[%clk 0:02:51]} 10. Bxg4 {[%clk 0:02:31]}  Qxg4 {[%clk 0:02:50]} 11. Qxg4 {[%clk 0:02:28]}  Nxg4 {[%clk 0:02:51]} 12. O-O {[%clk 0:02:11]}  Rc8 {[%clk 0:02:50]} 13. b3 {[%clk 0:02:07]}  g6 {[%clk 0:02:44]} 14. Bb2 {[%clk 0:02:03]}  Bg7 {[%clk 0:02:44]} 15. Rd1 {[%clk 0:01:58]}  b5 {[%clk 0:02:44]} 16. Bxd4 {[%clk 0:01:54]}  O-O {[%clk 0:02:41]} 17. Bxg7 {[%clk 0:01:53]}  Kxg7 {[%clk 0:02:41]} 18. Rd4 {[%clk 0:01:49]}  Ne5 {[%clk 0:02:34]} 19. Nd2 {[%clk 0:01:46]}  Rfd8 {[%clk 0:02:32]} 20. Re1 {[%clk 0:01:20]}  f6 {[%clk 0:02:25]} 21. f4 {[%clk 0:01:19]}  Nc6 {[%clk 0:02:24]} 22. Rde4 {[%clk 0:01:18]}  e5 {[%clk 0:02:20]} 23. Nf3 {[%clk 0:01:10]}  Nb4 {[%clk 0:02:08]} 24. fxe5 {[%clk 0:01:09]}  f5 {[%clk 0:01:57]} 25. R4e2 {[%clk 0:01:06]}  bxc4 {[%clk 0:01:56]} 26. bxc4 {[%clk 0:00:58]}  Rxc4 {[%clk 0:01:56]} 27. d6 {[%clk 0:00:57]}  Nd3 {[%clk 0:01:51]} 28. Rd1 {[%clk 0:00:54]}  Nf4 {[%clk 0:01:50]} 29. Red2 {[%clk 0:00:48]}  Ne6 {[%clk 0:01:49]} 30. Nd4 {[%clk 0:00:44]}  Kf7 {[%clk 0:01:45]} 31. g3 {[%clk 0:00:36]}  Nxd4 {[%clk 0:01:40]} 32. Rxd4 {[%clk 0:00:36]}  Rxd4 {[%clk 0:01:41]} 33. Rxd4 {[%clk 0:00:35]}  Ke6 {[%clk 0:01:42]} 34. Ra4 {[%clk 0:00:31]}  Kxe5 {[%clk 0:01:42]} 35. Rxa7 {[%clk 0:00:30]}  Rxd6 {[%clk 0:01:41]} 36. Rxh7 {[%clk 0:00:30]}  Ra6 {[%clk 0:01:40]} 37. Rg7 {[%clk 0:00:27]}  Ke4 {[%clk 0:01:36]} 38. Kg2 {[%clk 0:00:25]}  Rxa2+ {[%clk 0:01:35]} 39. Kh3 {[%clk 0:00:25]}  Ra6 {[%clk 0:01:34]} 40. Kh4 {[%clk 0:00:24]}  f4 {[%clk 0:01:22]} 41. gxf4 {[%clk 0:00:20]}  Kxf4 {[%clk 0:01:22]} 42. Kh3 {[%clk 0:00:20]}  g5 {[%clk 0:01:19]} 43. Rf7+ {[%clk 0:00:19]}  Ke4 {[%clk 0:01:18]} 44. Kg4 {[%clk 0:00:19]}  Rh6 {[%clk 0:01:17]} 45. Rg7 {[%clk 0:00:19]}  Rxh2 {[%clk 0:01:17]} 46. Kxg5 {[%clk 0:00:19]}  Rg2+ {[%clk 0:01:17]} 47. Kf6 {[%clk 0:00:19]}  Rxg7 {[%clk 0:01:17]} 48. Kxg7 {[%clk 0:00:19]} 1/2-1/2


[Site "https://www.chess.com"]

[Event "Titled Tuesday Blitz November 22 Early 2022"]
[White "Hoffmann, Asa"]
[Black "Zubkov, Vsevolod"]
[WhiteFideId "2001470"]
[BlackFideId "24136760"]
[WhiteElo "2117"]
[BlackElo "2148"]
[Result "1-0"]
[Round "03"]
[TimeControl "180+1"]
[Date "2022.11.23"]
[WhiteClock "0:01:24"]
[BlackClock "0:00:12"]

1. d4 {[%clk 0:02:59]}  d5 {[%clk 0:02:59]} 2. Bg5 {[%clk 0:02:58]}  c5 {[%clk 0:02:59]} 3. dxc5 {[%clk 0:02:56]}  Nc6 {[%clk 0:02:57]} 4. c3 {[%clk 0:02:55]}  a5 {[%clk 0:02:55]} 5. e4 {[%clk 0:02:52]}  dxe4 {[%clk 0:02:51]} 6. Qxd8+ {[%clk 0:02:51]}  Kxd8 {[%clk 0:02:52]} 7. Na3 {[%clk 0:02:50]}  h6 {[%clk 0:02:38]} 8. O-O-O+ {[%clk 0:02:49]}  Kc7 {[%clk 0:02:38]} 9. Nb5+ {[%clk 0:02:49]}  Kb8 {[%clk 0:02:38]} 10. Bh4 {[%clk 0:02:38]}  f5 {[%clk 0:02:31]} 11. f3 {[%clk 0:02:31]}  g5 {[%clk 0:02:23]} 12. Bf2 {[%clk 0:02:29]}  Nf6 {[%clk 0:02:23]} 13. Bc4 {[%clk 0:02:26]}  Ne5 {[%clk 0:02:12]} 14. fxe4 {[%clk 0:01:59]}  Nxc4 {[%clk 0:01:37]} 15. exf5 {[%clk 0:01:57]}  Bxf5 {[%clk 0:01:20]} 16. Rd8+ {[%clk 0:01:50]}  Bc8 {[%clk 0:01:20]} 17. Bg3+ {[%clk 0:01:50]}  e5 {[%clk 0:01:19]} 18. Nf3 {[%clk 0:01:44]}  Ne4 {[%clk 0:00:25]} 19. Nxe5 {[%clk 0:01:40]}  b6 {[%clk 0:00:22]} 20. c6 {[%clk 0:01:25]}  Rh7 {[%clk 0:00:12]} 21. Nd7# {[%clk 0:01:24]} 1-0


[Site "https://www.chess.com"]

[Event "Titled Tuesday Blitz November 22 Early 2022"]
[White "Ibarra Jerez, Jose Carlos"]
[Black "Goldin, Alexander"]
[WhiteFideId "2226332"]
[BlackFideId "2019540"]
[WhiteElo "2638"]
[BlackElo "2632"]
[Result "1-0"]
[Round "03"]
[TimeControl "180+1"]
[Date "2022.11.22"]
[WhiteClock "0:01:21"]
[BlackClock "0:00:11"]

1. e4 {[%clk 0:03:00]}  e5 {[%clk 0:02:59]} 2. Nf3 {[%clk 0:03:00]}  Nc6 {[%clk 0:02:59]} 3. Bb5 {[%clk 0:03:00]}  a6 {[%clk 0:02:58]} 4. Bxc6 {[%clk 0:03:00]}  dxc6 {[%clk 0:02:58]} 5. O-O {[%clk 0:03:01]}  f6 {[%clk 0:02:57]} 6. d4 {[%clk 0:03:01]}  exd4 {[%clk 0:02:57]} 7. Nxd4 {[%clk 0:03:02]}  c5 {[%clk 0:02:56]} 8. Nb3 {[%clk 0:03:02]}  Qxd1 {[%clk 0:02:54]} 9. Rxd1 {[%clk 0:03:03]}  Bd7 {[%clk 0:02:52]} 10. Bf4 {[%clk 0:03:02]}  O-O-O {[%clk 0:02:51]} 11. Nc3 {[%clk 0:03:02]}  c4 {[%clk 0:02:08]} 12. Na5 {[%clk 0:03:02]}  Bb4 {[%clk 0:01:57]} 13. Bxc7 {[%clk 0:02:33]}  Bxa5 {[%clk 0:01:44]} 14. Bxa5 {[%clk 0:02:32]}  Re8 {[%clk 0:01:43]} 15. Rd4 {[%clk 0:02:30]}  Be6 {[%clk 0:01:34]} 16. Nd5 {[%clk 0:01:55]}  Bxd5 {[%clk 0:01:34]} 17. exd5 {[%clk 0:01:55]}  b5 {[%clk 0:01:29]} 18. a4 {[%clk 0:01:56]}  Nh6 {[%clk 0:01:24]} 19. axb5 {[%clk 0:01:55]}  axb5 {[%clk 0:01:24]} 20. Bb4 {[%clk 0:01:50]}  Kb7 {[%clk 0:01:09]} 21. d6 {[%clk 0:01:47]}  Nf5 {[%clk 0:01:04]} 22. Rd5 {[%clk 0:01:45]}  Re5 {[%clk 0:01:04]} 23. Rdd1 {[%clk 0:01:35]}  Rd8 {[%clk 0:01:02]} 24. d7 {[%clk 0:01:32]}  Ne7 {[%clk 0:00:56]} 25. Ba5 {[%clk 0:01:29]}  Nc6 {[%clk 0:00:49]} 26. Bxd8 {[%clk 0:01:28]}  Nxd8 {[%clk 0:00:50]} 27. Re1 {[%clk 0:01:28]}  Rd5 {[%clk 0:00:49]} 28. Rad1 {[%clk 0:01:27]}  Rxd1 {[%clk 0:00:14]} 29. Rxd1 {[%clk 0:01:27]}  Kc7 {[%clk 0:00:15]} 30. c3 {[%clk 0:01:25]}  Nb7 {[%clk 0:00:13]} 31. f3 {[%clk 0:01:23]}  Kd8 {[%clk 0:00:11]} 32. Rd5 {[%clk 0:01:21]} 1-0


[Site "https://www.chess.com"]

[Event "Titled Tuesday Blitz November 22 Early 2022"]
[White "Ismayil, Malak"]
[Black "Sanchez, Robert"]
[WhiteFideId "13412604"]
[BlackFideId "2034360"]
[WhiteElo "1879"]
[BlackElo "2288"]
[Result "0-1"]
[Round "03"]
[TimeControl "180+1"]
[Date "2022.11.23"]
[WhiteClock "0:01:15"]
[BlackClock "0:01:33"]

1. e4 {[%clk 0:03:00]}  d5 {[%clk 0:02:59]} 2. exd5 {[%clk 0:03:00]}  Qxd5 {[%clk 0:03:00]} 3. Nc3 {[%clk 0:03:00]}  Qe6+ {[%clk 0:03:01]} 4. Be2 {[%clk 0:02:54]}  Qg6 {[%clk 0:03:01]} 5. Bf3 {[%clk 0:02:53]}  Nc6 {[%clk 0:03:01]} 6. Nge2 {[%clk 0:02:54]}  e5 {[%clk 0:03:01]} 7. d3 {[%clk 0:02:54]}  Bd7 {[%clk 0:03:01]} 8. Be3 {[%clk 0:02:53]}  O-O-O {[%clk 0:03:01]} 9. Qd2 {[%clk 0:02:53]}  f5 {[%clk 0:03:01]} 10. g3 {[%clk 0:02:51]}  Kb8 {[%clk 0:02:58]} 11. O-O-O {[%clk 0:02:51]}  Nf6 {[%clk 0:02:54]} 12. a3 {[%clk 0:02:47]}  Bd6 {[%clk 0:02:50]} 13. Nb5 {[%clk 0:02:45]}  a6 {[%clk 0:02:47]} 14. Nxd6 {[%clk 0:02:44]}  cxd6 {[%clk 0:02:48]} 15. Nc3 {[%clk 0:02:40]}  Rc8 {[%clk 0:02:43]} 16. Kb1 {[%clk 0:02:38]}  Be6 {[%clk 0:02:41]} 17. Bg2 {[%clk 0:02:24]}  d5 {[%clk 0:02:40]} 18. d4 {[%clk 0:02:23]}  e4 {[%clk 0:02:39]} 19. Ne2 {[%clk 0:02:20]}  Qe8 {[%clk 0:02:33]} 20. Bf4+ {[%clk 0:02:18]}  Ka7 {[%clk 0:02:33]} 21. Be5 {[%clk 0:02:18]}  Nd7 {[%clk 0:02:22]} 22. Bxg7 {[%clk 0:02:16]}  Rg8 {[%clk 0:02:22]} 23. Bh6 {[%clk 0:02:17]}  Nb6 {[%clk 0:02:21]} 24. Bf1 {[%clk 0:02:06]}  Nc4 {[%clk 0:02:19]} 25. Qc1 {[%clk 0:02:06]}  N6a5 {[%clk 0:02:18]} 26. Bd2 {[%clk 0:01:58]}  Nxd2+ {[%clk 0:02:11]} 27. Qxd2 {[%clk 0:01:58]}  Nc4 {[%clk 0:02:11]} 28. Qc1 {[%clk 0:01:52]}  Rc6 {[%clk 0:02:06]} 29. Nc3 {[%clk 0:01:48]}  Nxa3+ {[%clk 0:02:03]} 30. bxa3 {[%clk 0:01:47]}  Rxc3 {[%clk 0:02:03]} 31. Qb2 {[%clk 0:01:45]}  Qc6 {[%clk 0:02:01]} 32. Be2 {[%clk 0:01:37]}  Rc8 {[%clk 0:02:01]} 33. Rd2 {[%clk 0:01:37]}  Qa4 {[%clk 0:01:54]} 34. Rc1 {[%clk 0:01:20]}  Rxa3 {[%clk 0:01:39]} 35. Bd1 {[%clk 0:01:19]}  Rac3 {[%clk 0:01:37]} 36. g4 {[%clk 0:01:15]}  R8c6 {[%clk 0:01:33]} 0-1


[Site "https://www.chess.com"]

[Event "Titled Tuesday Blitz November 22 Early 2022"]
[White "Johnson, Donald"]
[Black "Levine, David"]
[WhiteFideId "30949122"]
[BlackFideId "2011611"]
[WhiteElo "2132"]
[BlackElo "2192"]
[Result "1-0"]
[Round "03"]
[TimeControl "180+1"]
[Date "2022.11.23"]
[WhiteClock "0:00:32"]
[BlackClock "0:00:13"]

1. b3 {[%clk 0:03:00]}  Nf6 {[%clk 0:02:58]} 2. Bb2 {[%clk 0:03:01]}  d5 {[%clk 0:02:58]} 3. e3 {[%clk 0:02:56]}  Bg4 {[%clk 0:02:56]} 4. Be2 {[%clk 0:02:54]}  Bxe2 {[%clk 0:02:55]} 5. Qxe2 {[%clk 0:02:55]}  c6 {[%clk 0:02:56]} 6. Nf3 {[%clk 0:02:56]}  Nbd7 {[%clk 0:02:55]} 7. O-O {[%clk 0:02:56]}  Qc7 {[%clk 0:02:54]} 8. c4 {[%clk 0:02:56]}  e5 {[%clk 0:02:50]} 9. d3 {[%clk 0:02:46]}  Bd6 {[%clk 0:02:50]} 10. e4 {[%clk 0:02:45]}  d4 {[%clk 0:02:47]} 11. a3 {[%clk 0:02:43]}  c5 {[%clk 0:02:47]} 12. g3 {[%clk 0:02:38]}  Nf8 {[%clk 0:02:25]} 13. Nbd2 {[%clk 0:02:31]}  Ne6 {[%clk 0:02:23]} 14. Nh4 {[%clk 0:02:21]}  g6 {[%clk 0:02:23]} 15. Ng2 {[%clk 0:02:19]}  Nh5 {[%clk 0:02:19]} 16. Rae1 {[%clk 0:01:59]}  O-O {[%clk 0:02:14]} 17. Bc1 {[%clk 0:01:48]}  Rae8 {[%clk 0:02:08]} 18. Nf3 {[%clk 0:01:33]}  f5 {[%clk 0:01:39]} 19. exf5 {[%clk 0:01:31]}  Rxf5 {[%clk 0:01:40]} 20. Ngh4 {[%clk 0:01:22]}  Nhf4 {[%clk 0:01:32]} 21. gxf4 {[%clk 0:01:18]}  Nxf4 {[%clk 0:01:31]} 22. Bxf4 {[%clk 0:01:14]}  Rxf4 {[%clk 0:01:31]} 23. Ng2 {[%clk 0:01:10]}  Rg4 {[%clk 0:01:16]} 24. h3 {[%clk 0:01:01]}  Rxg2+ {[%clk 0:01:07]} 25. Kxg2 {[%clk 0:01:02]}  e4 {[%clk 0:01:08]} 26. dxe4 {[%clk 0:01:02]}  Bf4 {[%clk 0:01:01]} 27. e5 {[%clk 0:01:00]}  Rf8 {[%clk 0:00:52]} 28. Qe4 {[%clk 0:00:57]}  Qe7 {[%clk 0:00:52]} 29. e6 {[%clk 0:00:51]}  Rf5 {[%clk 0:00:50]} 30. b4 {[%clk 0:00:43]}  Bd6 {[%clk 0:00:25]} 31. bxc5 {[%clk 0:00:42]}  Bxc5 {[%clk 0:00:24]} 32. Nxd4 {[%clk 0:00:41]}  Qg5+ {[%clk 0:00:19]} 33. Kh1 {[%clk 0:00:41]}  Bxd4 {[%clk 0:00:17]} 34. e7 {[%clk 0:00:37]}  Qh5 {[%clk 0:00:13]} 35. e8=Q+ {[%clk 0:00:35]}  Kg7 {[%clk 0:00:14]} 36. Qxd4+ {[%clk 0:00:35]}  Kh6 {[%clk 0:00:13]} 37. Qg4 {[%clk 0:00:32]} 1-0


[Site "https://www.chess.com"]

[Event "Titled Tuesday Blitz November 22 Early 2022"]
[White "Jones, Daniel"]
[Black "Janaszak, Dawid"]
[WhiteFideId "2019655"]
[BlackFideId "1119206"]
[WhiteElo "2346"]
[BlackElo "2226"]
[Result "0-1"]
[Round "03"]
[TimeControl "180+1"]
[Date "2022.11.23"]
[WhiteClock "0:00:05"]
[BlackClock "0:01:16"]

1. e4 {[%clk 0:02:58]}  c5 {[%clk 0:02:59]} 2. Nc3 {[%clk 0:02:56]}  a6 {[%clk 0:02:58]} 3. f4 {[%clk 0:02:56]}  b5 {[%clk 0:02:58]} 4. Nf3 {[%clk 0:02:52]}  Bb7 {[%clk 0:02:58]} 5. d3 {[%clk 0:02:52]}  g6 {[%clk 0:02:55]} 6. g3 {[%clk 0:02:47]}  Bg7 {[%clk 0:02:55]} 7. Bg2 {[%clk 0:02:46]}  e6 {[%clk 0:02:55]} 8. O-O {[%clk 0:02:45]}  Ne7 {[%clk 0:02:56]} 9. e5 {[%clk 0:02:43]}  d5 {[%clk 0:02:53]} 10. exd6 {[%clk 0:02:20]}  Qxd6 {[%clk 0:02:53]} 11. Qe2 {[%clk 0:02:19]}  O-O {[%clk 0:02:50]} 12. Ne4 {[%clk 0:02:19]}  Qc7 {[%clk 0:02:48]} 13. c3 {[%clk 0:02:17]}  c4 {[%clk 0:02:44]} 14. d4 {[%clk 0:02:16]}  Nd7 {[%clk 0:02:42]} 15. Ne5 {[%clk 0:02:12]}  Nf6 {[%clk 0:02:37]} 16. Nc5 {[%clk 0:01:36]}  Bxg2 {[%clk 0:02:35]} 17. Qxg2 {[%clk 0:01:37]}  Ned5 {[%clk 0:02:19]} 18. Bd2 {[%clk 0:01:31]}  Rfd8 {[%clk 0:02:15]} 19. Rf2 {[%clk 0:01:26]}  a5 {[%clk 0:02:12]} 20. h3 {[%clk 0:01:22]}  b4 {[%clk 0:02:12]} 21. Nxc4 {[%clk 0:01:19]}  bxc3 {[%clk 0:02:11]} 22. bxc3 {[%clk 0:01:20]}  Nd7 {[%clk 0:02:11]} 23. Nxd7 {[%clk 0:01:13]}  Rxd7 {[%clk 0:02:07]} 24. Ne5 {[%clk 0:01:10]}  Rdd8 {[%clk 0:02:07]} 25. c4 {[%clk 0:00:58]}  Ne7 {[%clk 0:02:05]} 26. Rc1 {[%clk 0:00:44]}  Rab8 {[%clk 0:02:01]} 27. Qe4 {[%clk 0:00:34]}  Nf5 {[%clk 0:02:00]} 28. Nc6 {[%clk 0:00:22]}  Rxd4 {[%clk 0:02:00]} 29. Nxd4 {[%clk 0:00:14]}  Bxd4 {[%clk 0:01:59]} 30. g4 {[%clk 0:00:14]}  Qc5 {[%clk 0:01:54]} 31. gxf5 {[%clk 0:00:11]}  Bxf2+ {[%clk 0:01:54]} 32. Kg2 {[%clk 0:00:12]}  exf5 {[%clk 0:01:54]} 33. Qd5 {[%clk 0:00:10]}  Rb2 {[%clk 0:01:48]} 34. Qd8+ {[%clk 0:00:05]}  Qf8 {[%clk 0:01:38]} 35. Qxf8+ {[%clk 0:00:06]}  Kxf8 {[%clk 0:01:39]} 36. Kxf2 {[%clk 0:00:06]}  Rxd2+ {[%clk 0:01:39]} 37. Ke3 {[%clk 0:00:07]}  Rh2 {[%clk 0:01:30]} 38. Kd4 {[%clk 0:00:08]}  Ke7 {[%clk 0:01:28]} 39. Re1+ {[%clk 0:00:09]}  Kd7 {[%clk 0:01:27]} 40. Kc5 {[%clk 0:00:10]}  Rxa2 {[%clk 0:01:25]} 41. Rd1+ {[%clk 0:00:10]}  Kc7 {[%clk 0:01:25]} 42. Re1 {[%clk 0:00:11]}  Kd7 {[%clk 0:01:24]} 43. Rd1+ {[%clk 0:00:12]}  Ke7 {[%clk 0:01:25]} 44. Re1+ {[%clk 0:00:13]}  Kf6 {[%clk 0:01:26]} 45. Kc6 {[%clk 0:00:13]}  Ra4 {[%clk 0:01:23]} 46. c5 {[%clk 0:00:14]}  Rxf4 {[%clk 0:01:23]} 47. Kc7 {[%clk 0:00:14]}  Rc4 {[%clk 0:01:23]} 48. c6 {[%clk 0:00:15]}  f4 {[%clk 0:01:23]} 49. Kd7 {[%clk 0:00:15]}  Kg5 {[%clk 0:01:22]} 50. c7 {[%clk 0:00:15]}  Kh4 {[%clk 0:01:22]} 51. Rf1 {[%clk 0:00:14]}  Kg3 {[%clk 0:01:21]} 52. h4 {[%clk 0:00:09]}  f3 {[%clk 0:01:20]} 53. Ra1 {[%clk 0:00:04]}  f2 {[%clk 0:01:17]} 54. Ra3+ {[%clk 0:00:04]}  Kg2 {[%clk 0:01:16]} 55. Ra1 {[%clk 0:00:05]}  f1=Q {[%clk 0:01:16]} 0-1


[Site "https://www.chess.com"]

[Event "Titled Tuesday Blitz November 22 Early 2022"]
[White "Kamsky, Gata"]
[Black "Malyi, Viacheslav"]
[WhiteFideId "2000024"]
[BlackFideId "14123983"]
[WhiteElo "2666"]
[BlackElo "2291"]
[Result "1-0"]
[Round "03"]
[TimeControl "180+1"]
[Date "2022.11.23"]
[WhiteClock "0:01:04"]
[BlackClock "0:00:20"]

1. e4 {[%clk 0:03:00]}  e5 {[%clk 0:02:58]} 2. Nf3 {[%clk 0:03:00]}  Nc6 {[%clk 0:02:59]} 3. Bb5 {[%clk 0:02:59]}  a6 {[%clk 0:02:58]} 4. Ba4 {[%clk 0:02:59]}  Nf6 {[%clk 0:02:58]} 5. O-O {[%clk 0:03:00]}  b5 {[%clk 0:02:58]} 6. Bb3 {[%clk 0:02:59]}  Bc5 {[%clk 0:02:59]} 7. c3 {[%clk 0:02:59]}  d6 {[%clk 0:02:59]} 8. a4 {[%clk 0:02:58]}  Rb8 {[%clk 0:02:58]} 9. axb5 {[%clk 0:02:56]}  axb5 {[%clk 0:02:59]} 10. d4 {[%clk 0:02:56]}  Bb6 {[%clk 0:02:59]} 11. h3 {[%clk 0:02:55]}  O-O {[%clk 0:02:59]} 12. Re1 {[%clk 0:02:52]}  Re8 {[%clk 0:02:58]} 13. Ng5 {[%clk 0:02:36]}  Rf8 {[%clk 0:02:48]} 14. Be3 {[%clk 0:02:35]}  h6 {[%clk 0:02:47]} 15. Nf3 {[%clk 0:02:35]}  Re8 {[%clk 0:02:48]} 16. Nbd2 {[%clk 0:02:33]}  Qe7 {[%clk 0:02:43]} 17. d5 {[%clk 0:02:06]}  Na5 {[%clk 0:02:40]} 18. Ba2 {[%clk 0:02:01]}  Nh5 {[%clk 0:02:28]} 19. b4 {[%clk 0:01:58]}  Nc4 {[%clk 0:02:09]} 20. Nxc4 {[%clk 0:01:53]}  bxc4 {[%clk 0:02:10]} 21. Bxc4 {[%clk 0:01:48]}  Qf6 {[%clk 0:02:10]} 22. Bxb6 {[%clk 0:01:42]}  cxb6 {[%clk 0:02:07]} 23. Bf1 {[%clk 0:01:39]}  Nf4 {[%clk 0:02:08]} 24. Re3 {[%clk 0:01:36]}  Bd7 {[%clk 0:02:05]} 25. c4 {[%clk 0:01:34]}  Rec8 {[%clk 0:02:04]} 26. Nd2 {[%clk 0:01:31]}  g5 {[%clk 0:02:02]} 27. Be2 {[%clk 0:01:25]}  Qg6 {[%clk 0:02:01]} 28. Bg4 {[%clk 0:01:24]}  f5 {[%clk 0:02:01]} 29. exf5 {[%clk 0:01:24]}  Bxf5 {[%clk 0:02:02]} 30. Bxf5 {[%clk 0:01:23]}  Qxf5 {[%clk 0:02:03]} 31. Qb1 {[%clk 0:01:22]}  Qf6 {[%clk 0:02:01]} 32. Ne4 {[%clk 0:01:21]}  Qg6 {[%clk 0:01:53]} 33. Qb3 {[%clk 0:01:20]}  Ra8 {[%clk 0:01:51]} 34. Rxa8 {[%clk 0:01:17]}  Rxa8 {[%clk 0:01:52]} 35. c5 {[%clk 0:01:17]}  h5 {[%clk 0:01:05]} 36. cxd6 {[%clk 0:01:11]}  g4 {[%clk 0:01:05]} 37. h4 {[%clk 0:01:11]}  g3 {[%clk 0:00:52]} 38. fxg3 {[%clk 0:01:06]}  Ra1+ {[%clk 0:00:23]} 39. Kh2 {[%clk 0:01:05]}  Qg4 {[%clk 0:00:20]} 40. Nf6+ {[%clk 0:01:04]} 1-0


[Site "https://www.chess.com"]